Cogmind - Beta 11 X9 @@@ ROGUE MODE // 2021.12.25 @ 13:08:18 // Winter2021/Sauler Player: Plexion Result: Destroyed by NK-0LA with NK-0LA's Tesla Doomcannon Performance ------------- Evolutions (1) 500 Regions Visited (6) 1200 Robots Destroyed (73) 365 Value Destroyed (1422) 1422 Prototype IDs (29) 580 Alien Tech Used (0) 0 Bonus (300) 300 TOTAL SCORE: 4367 Bonus ------- Aligned with FarCom 300 Cogmind --------- Core Integrity 0/400 Matter 166/300 Energy 288/310 System Corruption 8% Temperature Cool (0) Movement Treading (640) Ox6 Location -8/Mines Parts ------- > --- POWER (1) -------- Reinforced Fission Core > --- PROPULSION (2) --- Light Treads Improved Treads > --- UTILITY (4) ------ Experimental Heat Sink High-capacity Storage Unit Humpback > --- WEAPON (2) ------- Autogun Autogun > --- INVENTORY (35) --- Light Neutrino Core Advanced Myomer Leg Advanced Myomer Leg Experimental Targeting Computer Improved Target Analyzer Advanced Core Analyzer Improved Armor Integrity Analyzer Advanced Weapon Cycler Hacking Suite Authchip [Armor] System Purifier AS-neutralizer No. 17b Autogun Autogun Rocket Launcher Peak State ------------ > --- POWER ------------ Reinforced Fission Core > --- PROPULSION ------- Light Treads Improved Treads > --- UTILITY ---------- Experimental Heat Sink High-capacity Storage Unit System Purifier > --- WEAPON ----------- 8R-AWN's Boregun Katana > --- INVENTORY -------- Light Treads Advanced Myomer Leg Advanced Myomer Leg Large Storage Unit Gravity Neutralizing Apparatus Signal Interpreter Experimental Targeting Computer Advanced Weapon Cycler Hacking Suite Authchip [Armor] AS-neutralizer No. 17b Beamcaster Autogun Autogun Autogun Autogun Rocket Launcher [Rating: 45] Favorites ----------- Power Improved Ion Engine Engine Improved Ion Engine Power Core Reinforced Fission Core Propulsion Light Treads Treads Light Treads Wheel Wheel Flight Unit Improved Flight Unit Utility High-capacity Storage Unit Device Heat Sink Storage High-capacity Storage Unit Processor Signal Interpreter Protection Light Armor Plating Weapon Autogun Energy Gun Small Laser Ballistic Gun Autogun Launcher Rocket Launcher Special Weapon Plasma Cutter Slashing Weapon Katana Build | -11 -10 -10 -9 -9 -9 -8 ------- Run | Scr Mat Min Mat Min Exi Min Slots Evolved 2 | . . . 2 . . . Power . | . . . . . . . Propulsion . | . . . . . . . Utility 2 | . . . 2 . . . Weapon . | . . . . . . . Parts Attached 74 | 6 10 4 22 1 25 6 Power 6 | 1 2 . 2 . 1 . Engine 5 | 1 2 . 2 . . . Core 1 | . . . . . 1 . Reactor . | . . . . . . . Propulsion 22 | 2 3 2 8 . 6 1 Treads 15 | 2 . 2 4 . 6 1 Leg . | . . . . . . . Wheel 6 | . 3 . 3 . . . Hover . | . . . . . . . Flight 1 | . . . 1 . . . Utility 19 | 1 1 . 6 . 10 1 Device 12 | . . . 6 . 6 . Storage 4 | 1 1 . . . 1 1 Processor 1 | . . . . . 1 . Hackware . | . . . . . . . Protection 2 | . . . . . 2 . Artifact . | . . . . . . . Weapon 27 | 2 4 2 6 1 8 4 Energy Gun 6 | 1 2 1 2 . . . Energy Cannon . | . . . . . . . Ballistic Gun 12 | 1 1 . 3 . 4 3 Ballistic Cannon . | . . . . . . . Launcher 5 | . 1 1 1 1 . 1 Special Weapon 1 | . . . . . 1 . Impact Weapon . | . . . . . . . Slashing Weapon 3 | . . . . . 3 . Piercing Weapon . | . . . . . . . Special Melee Weapon . | . . . . . . . Unidentified Prototypes 6 | . . . 1 . 5 . Parts Lost 24 | . 1 2 4 . 14 3 Power 3 | . 1 . 1 . 1 . Propulsion 10 | . . 2 2 . 5 1 Utility 5 | . . . . . 5 . Weapon 6 | . . . 1 . 3 2 Highest Loss Streak 12 | . 1 2 2 . 12 3 Average Slot Usage (%) 90 | . 84 85 93 100 92 87 Engine 9 | . 13 14 9 11 6 . Core 1 | . . . . . 3 11 Treads 21 | . 19 27 16 22 21 21 Wheel 1 | . 7 . 4 . . . Device 16 | . . . 28 33 19 11 Storage 11 | . 14 14 11 11 11 13 Protection 2 | . . . . . 5 . Energy Gun 5 | . 13 10 10 1 . . Ballistic Gun 12 | . 14 14 10 11 12 12 Launcher 3 | . . 3 . 9 6 1 Slashing Weapon 1 | . . . . . 2 9 Naked Turns . | . . . . . . . Heaviest Build 70 | 13 48 48 58 58 70 69 Greatest Support 43 | 40 40 40 40 40 43 43 Greatest Overweight (x) 5 | . 2 1 5 1 1 1 Average Overweight (x) . | . . 1 1 1 1 1 Largest Inventory Capacity 35 | 8 20 20 20 20 35 35 Average Capacity 19 | 7 11 20 20 20 20 22 Most Carried 20 | 4 10 12 20 20 20 20 Average Carried 14 | 2 6 7 16 20 17 19 Final Capacity 35 | 8 20 20 20 20 20 35 Final Carried 20 | 4 9 11 20 20 20 15 Class Distribution -------------------- 65% | Scavenger-Mutant 32% | Mutant Dominant Class ---------------- Mutant | -10/Materials Mutant | -10/Mines Scavenger-Mutant | -9/Materials Scavenger-Mutant | -9/Mines Scavenger-Mutant | -9/Exiles Scavenger-Mutant | -8/Mines Resources | -11 -10 -10 -9 -9 -9 -8 ----------- Run | Scr Mat Min Mat Min Exi Min Matter Collected 1702 | 227 90 267 449 24 645 . Remotely . | . . . . . . . Salvage Created 2201 | 25 298 199 1159 17 486 17 Parts 198 | 3 25 20 67 6 71 6 Haulers Intercepted 2 | . . . 2 . . . Recyclers Shooed 2 | . . 1 1 . . . Parts Field Recycled . | . . . . . . . Retrieved Matter . | . . . . . . . Parts Self-Destructed . | . . . . . . . Prevented . | . . . . . . . Kills | -11 -10 -10 -9 -9 -9 -8 ------- Run | Scr Mat Min Mat Min Exi Min Combat Hostiles Destroyed 51 | . 6 9 24 3 6 3 Melee 1 | . . . . . 1 . Guns 33 | . 5 6 22 . . . AOE 17 | . 1 3 2 3 5 3 Classes Destroyed 15 | 1 5 1 5 . 3 . Worker 6 | 1 2 1 2 . . . Builder 1 | . 1 . . . . . Tunneler 2 | . . 1 . 1 . . Hauler 2 | . . . 2 . . . Recycler 2 | . 1 . 1 . . . Operator 1 | . 1 . . . . . Turret 1 | . . . . . 1 . Watcher 2 | . . . 2 . . . Swarmer 18 | . 3 7 2 3 . 3 Grunt 21 | . 3 2 16 . . . Brawler 1 | . . . 1 . . . Duelist 1 | . . . 1 . . . Sentry 4 | . . . 4 . . . Zionite 8 | . . . . . 8 . Assembled 5 | . . . . . 5 . Best Kill Streak 6 | 1 4 3 6 4 5 3 Combat Bots Only 5 | . 3 3 5 3 5 3 Max Kills in Single Turn 3 | 1 2 2 2 3 2 2 Gunslinging 1 | . . 1 . . . . Exploded 2 | . 1 2 1 2 2 2 Melee 1 | . . . . . 1 . Uniques/NPCs Destroyed 4 | . . . . . 4 . 8R-AWN (-9/Exiles) EX-DEC (-9/Exiles) EX-HEX (-9/Exiles) EX-BIN (-9/Exiles) Combat | -11 -10 -10 -9 -9 -9 -8 -------- Run | Scr Mat Min Mat Min Exi Min Damage Taken 3270 | . 302 253 533 54 1480 648 Core 516 | . 55 57 75 6 164 159 Absorbed by Shields . | . . . . . . . Core Remaining (%) 77 | 100 . 55 . . . . Volleys Fired 190 | 1 30 26 58 4 64 7 Largest 2 | 2 2 2 2 2 2 2 Hottest 98 | 60 60 60 98 98 53 53 Shots Fired 304 | 2 57 49 112 5 69 10 Gun 283 | 2 56 46 108 2 61 8 Cannon . | . . . . . . . Launcher 17 | . 1 3 4 3 4 2 Special 4 | . . . . . 4 . Kinetic 177 | 1 29 23 54 1 61 8 Thermal 110 | 1 27 23 54 1 4 . Explosive 17 | . 1 3 4 3 4 2 Electromagnetic . | . . . . . . . Robot Hit Streak 21 | 2 8 9 21 . 5 7 Robot Miss Streak 5 | . 3 4 3 4 5 1 Penetration Max 1 | . . . . . 1 . Secondary Targets 6 | . 2 2 2 . . . Max Gunslinging Chain 1 | . 1 1 1 . . . Shots Hit Robots 230 | 2 37 34 76 . 75 6 Core Hits 114 | 1 16 14 44 4 31 4 Critical Kills 6 | . 1 1 . . 4 . Critical Parts Destroyed 11 | . . . 1 . 9 1 Critical Strikes 21 | . 1 1 2 . 14 3 Burn 1 | . . . 1 . . . Destroy 19 | . 1 1 1 . 13 3 Sever 1 | . . . . . 1 . Melee Attacks 51 | . . . . . 51 . Impact . | . . . . . . . Slashing 51 | . . . . . 51 . Piercing . | . . . . . . . Sneak Attacks 1 | . . . . . 1 . Combat Hostiles . | . . . . . . . Follow-up Attacks . | . . . . . . . Damage Inflicted 5314 | 25 465 598 1550 296 2085 295 Guns 2728 | 25 424 382 1253 . 548 96 Cannons . | . . . . . . . Explosions 1314 | . 41 216 297 296 265 199 Melee 1269 | . . . . . 1269 . Ramming . | . . . . . . . Kinetic 1594 | 13 233 192 512 . 548 96 Thermal 1137 | 12 191 190 741 . 3 . Explosive 1314 | . 41 216 297 296 265 199 Electromagnetic . | . . . . . . . Impact . | . . . . . . . Slashing 1269 | . . . . . 1269 . Piercing . | . . . . . . . Highest Corruption 8 | . . . . . . 8 Average Corruption 5 | . . . . . . 5 Corruption Purged . | . . . . . . . Overload Shots . | . . . . . . . Overflow Damage 73 | . . 35 4 . 34 . Projectiles . | . . . . . . . Explosions 73 | . . 35 4 . 34 . Melee . | . . . . . . . Knockbacks . | . . . . . . . Impact . | . . . . . . . Kinetic . | . . . . . . . Secondary . | . . . . . . . Self-Inflicted Damage 101 | . . 53 19 . . 29 Shots 5 | . . 2 1 . . 2 Rammed . | . . . . . . . Targets Rammed . | . . . . . . . Kicked . | . . . . . . . Crushed . | . . . . . . . Highest Temperature 48 | . 30 48 9 . . . Average Temperature 15 | . 16 20 4 . . . Received Heat Transfer 414 | . 105 48 234 . 27 . Siege Activations . | . . . . . . . Robots Corrupted . | . . . . . . . Combat Hostiles . | . . . . . . . Parts Fried . | . . . . . . . Impact Corruptions . | . . . . . . . Robots Melted . | . . . . . . . Combat Hostiles . | . . . . . . . Parts Melted 2 | . 1 . 1 . . . Heat Transferred 2323 | 25 425 425 1421 . 27 . Parts Sabotaged . | . . . . . . . Parts Stolen . | . . . . . . . Parts Stripped . | . . . . . . . Power Chain Reactions . | . . . . . . . Missiles Intercepted . | . . . . . . . Alert | -11 -10 -10 -9 -9 -9 -8 ------- Run | Scr Mat Min Mat Min Exi Min Peak Influence 376 | 5 130 170 376 204 . 108 Initial 124 | . 3 50 . 124 . . Average 129 | . 56 105 184 193 . 103 Maximum Alert Level 1 | . . . 1 1 . . Low Security (%) 77 | 100 100 100 56 15 . 100 Level 1 22 | . . . 43 84 . . Level 2 . | . . . . . . . Level 3 . | . . . . . . . Level 4 . | . . . . . . . Level 5 . | . . . . . . . High Security . | . . . . . . . Max Security . | . . . . . . . Squads Dispatched 3 | . 1 . 2 . . . Investigation 1 | . . . 1 . . . Extermination . | . . . . . . . Reinforcement 2 | . 1 . 1 . . . Assault . | . . . . . . . Garrison . | . . . . . . . Intercept . | . . . . . . . Construction Impeded 1 | . . . 1 . . . Haulers Reinforced . | . . . . . . . Active Scanning Responses . | . . . . . . . Cargo Convoy Interrupts . | . . . . . . . Stealth | -11 -10 -10 -9 -9 -9 -8 --------- Run | Scr Mat Min Mat Min Exi Min Distress Signals 3 | . 1 1 1 . . . Communications Jammed . | . . . . . . . Distress Signals . | . . . . . . . Times Spotted 92 | . 12 11 32 4 29 4 Peak Tracking Total 12 | . 3 3 3 4 12 4 Tactical Retreats 13 | . 1 1 1 1 9 . Traps | -11 -10 -10 -9 -9 -9 -8 ------- Run | Scr Mat Min Mat Min Exi Min Traps Triggered 4 | . 2 . 2 . . . Indirectly . | . . . . . . . Trap Hack Attempts . | . . . . . . . Triggered . | . . . . . . . Disarmed . | . . . . . . . Reprogrammed . | . . . . . . . Reused . | . . . . . . . Traps Extracted . | . . . . . . . Installed . | . . . . . . . Triggered . | . . . . . . . Exploded 3 | . . . . . 3 . Machines | -11 -10 -10 -9 -9 -9 -8 ---------- Run | Scr Mat Min Mat Min Exi Min Machines Disabled 15 | . . 1 2 . 11 1 Max in Single Turn 2 | . . 1 1 . 2 1 Machines Sabotaged . | . . . . . . . Garrisons Compromised . | . . . . . . . Overloaded Fab Kills . | . . . . . . . Hacking | -11 -10 -10 -9 -9 -9 -8 --------- Run | Scr Mat Min Mat Min Exi Min Machines Accessed 8 | . 3 . 3 . 2 . Terminals 6 | . 3 . 3 . . . Fabricators . | . . . . . . . Repair Stations . | . . . . . . . Recycling Units . | . . . . . . . Scanalyzers . | . . . . . . . Garrison Access . | . . . . . . . Total Hacks 19 | . 7 . 10 . 2 . Successful 11 | . 2 . 7 . 2 . Failed 8 | . 5 . 3 . . . Catastrophic 2 | . . . 2 . . . Database Lockouts . | . . . . . . . Manual 17 | . 7 . 9 . 1 . Terminals 17 | . 7 . 10 . . . Fabricators . | . . . . . . . Repair Stations . | . . . . . . . Recycling Units . | . . . . . . . Scanalyzers . | . . . . . . . Garrison Access . | . . . . . . . Terminal Hacks 7 | . 2 . 3 . 2 . Record 1 | . . . . . 1 . Robot Analysis 1 | . 1 . . . . . Security Status 1 | . . . 1 . . . Recall Reinforcements 1 | . 1 . . . . . Zone Layout 2 | . . . 2 . . . EX-Prototype ID Bank 1 | . . . . . 1 . Fabricator Hacks . | . . . . . . . Repair Station Hacks . | . . . . . . . Recycling Unit Hacks . | . . . . . . . Scanalyzer . | . . . . . . . Garrison Access Hacks . | . . . . . . . Unauthorized Hacks 4 | . . . 4 . . . Terminals 4 | . . . 4 . . . Track 1 | . . . 1 . . . Assimilate 2 | . . . 2 . . . Operators 1 | . . . 1 . . . Fabricators . | . . . . . . . Repair Stations . | . . . . . . . Recycling Units . | . . . . . . . Scanalyzers . | . . . . . . . Garrison Access . | . . . . . . . Data Cores Recovered . | . . . . . . . Used . | . . . . . . . Hacking Detections 5 | . 3 . 2 . . . Full Trace Events . | . . . . . . . Feedback Events . | . . . . . . . Feedback Blocked . | . . . . . . . Robot Schematics Acquired . | . . . . . . . Robots Built . | . . . . . . . Authchips . | . . . . . . . Time . | . . . . . . . Total Robot Build Rating . | . . . . . . . Part Schematics Acquired . | . . . . . . . Parts Built . | . . . . . . . Authchips . | . . . . . . . Time . | . . . . . . . Total Part Build Rating . | . . . . . . . Parts Repaired . | . . . . . . . Time . | . . . . . . . Parts Recycled . | . . . . . . . Recycled Matter . | . . . . . . . Retrieved Matter . | . . . . . . . Retrieved Components . | . . . . . . . Parts Scanalyzed . | . . . . . . . Part Schematics Acquired . | . . . . . . . Parts Damaged . | . . . . . . . Bothacking | -11 -10 -10 -9 -9 -9 -8 ------------ Run | Scr Mat Min Mat Min Exi Min Used RIF Installer . | . . . . . . . Robots Hacked . | . . . . . . . Non-combat . | . . . . . . . Combat . | . . . . . . . Robot Hacks Applied . | . . . . . . . Relay Couplers Released . | . . . . . . . Fabnet Peak Effective % . | . . . . . . . Robots Rewired . | . . . . . . . Allies Hacked . | . . . . . . . Hacks Repelled . | . . . . . . . Allies | -11 -10 -10 -9 -9 -9 -8 -------- Run | Scr Mat Min Mat Min Exi Min Total Allies 3 | . . 1 2 . . . Largest Group 1 | . . 1 1 1 . . Highest-Rated Group 31 | . . 31 31 10 . . Highest-Rated Ally 31 | . . 31 31 10 . . Total Orders . | . . . . . . . Ally Attacks 4 | . . . 4 . . . Total Damage 43 | . . . 43 . . . Kills . | . . . . . . . Allies Corrupted . | . . . . . . . Allies Melted . | . . . . . . . Intel | -11 -10 -10 -9 -9 -9 -8 ------- Run | Scr Mat Min Mat Min Exi Min Robot Analysis Total 1 | . 1 . . . . . Derelict Logs Recovered 3 | . . 2 . 1 . . Drone Launches . | . . . . . . . Drone Recoveries . | . . . . . . . Exploration | -11 -10 -10 -9 -9 -9 -8 ------------- Run | Scr Mat Min Mat Min Exi Min Turns Passed 6159 | 103 663 873 1346 186 2886 102 Spaces Moved 2465 | 59 375 329 543 74 1057 28 Core 6 | 6 . . . . . . Treads 2118 | 53 247 329 330 74 1057 28 Legs . | . . . . . . . Wheels 341 | . 128 . 213 . . . Hover . | . . . . . . . Flight . | . . . . . . . Fastest Speed 50 | 50 115 240 110 240 240 240 Average Speed 212 | 148 144 240 189 240 240 240 Slowest Speed 240 | 160 160 240 240 240 240 240 Overloaded Moves . | . . . . . . . Propulsion Burnouts . | . . . . . . . Robots Hopped . | . . . . . . . Cave-ins Triggered . | . . . . . . . Exploration Rate (%) 46 | 4 72 72 49 25 88 12 Regions Visited 6 Branch Regions 4 Pre-discovered Areas 3 | . . 1 . 1 1 . Known Exits Taken 1 | . . . . . 1 . Unknown Exits Taken 5 | 1 1 1 1 1 . . Scrap Searched 3 | . . 2 . 1 . . Spaces Dug 25 | . . . 8 7 . 10 Terrain Destroyed 118 | . 6 16 14 27 32 23 Melee . | . . . . . . . Projectile 15 | . . . . . 12 3 AOE 101 | . 6 16 14 27 18 20 Terrain Rammed . | . . . . . . . Walls Destroyed . | . . . . . . . Machines Disabled . | . . . . . . . Actions | -11 -10 -10 -9 -9 -9 -8 --------- Run | Scr Mat Min Mat Min Exi Min Total 3025 | 69 434 364 762 78 1265 53 Wait 147 | . 14 . 98 . 24 11 Move 2459 | 58 374 328 542 73 1056 28 Hop . | . . . . . . . Pick Up 61 | 4 5 5 25 . 22 . Fast Attach 28 | 6 5 . 11 . 6 . Attach 28 | . 1 2 7 . 14 4 Detach 11 | . 1 . 2 . 7 1 Swap 18 | . 4 2 4 1 5 2 Drop 32 | . . 1 15 . 16 . Fire 190 | 1 30 26 58 4 64 7 Melee 51 | . . . . . 51 . Ram . | . . . . . . . Kick . | . . . . . . . Crush . | . . . . . . . Escape Stasis . | . . . . . . . Rewire . | . . . . . . . Trap . | . . . . . . . Miscellaneous . | . . . . . . . Route ------- -11/Scrapyard -10/Materials (discovered 4 exits: *Mat x2 / [*Min x2]) -10/Mines -9/Materials (discovered 4 exits: [*Mat] / [*Min] / *Sto x2) -9/Mines -9/Exiles -8/Mines History --------- Turn | Location | Event 4 | -11/Scrapyard | Discovered new exit (range 16) 104 | -11/Scrapyard | Entered Materials 252 | -10/Materials | Discovered new exit (range 16) 314 | -10/Materials | Build established: Mutant 319 | -10/Materials | Discovered new exit (range 8) 394 | -10/Materials | Discovered new exit (range 8) 639 | -10/Materials | Discovered new exit (range 4) 767 | -10/Materials | Entered Mines 779 | -10/Mines | Learned location of Storage (-9) 1356 | -10/Mines | Received a Rocket Launcher from a helpful Derelict 1626 | -10/Mines | Discovered new exit (range 4) 1629 | -10/Mines | Received a Mining Laser from a helpful Derelict 1640 | -10/Mines | Entered Materials 1640 | -9/Materials | Accompanied by 1 ally 1640 | -9/Materials | Evolved 2 slots: Utility x2 1641 | -9/Materials | Identified exit to Storage 2240 | -9/Materials | Build established: Scavenger-Mutant 2555 | -9/Materials | Discovered new exit (range 12) 2719 | -9/Materials | Discovered new exit (range 8) 2834 | -9/Materials | Discovered exit to Storage (range 8) 2986 | -9/Materials | Entered Mines 2986 | -9/Mines | Accompanied by 1 ally 3066 | -9/Mines | Learned location of Zion (-6) 3162 | -9/Mines | Deemed a non-threat by the Exiles lab entrance 3162 | -9/Mines | Discovered new exit (range 5) 3172 | -9/Mines | Entered Exiles 3232 | -9/Exiles | Met 8R-AWN 3266 | -9/Exiles | Met EX-HEX 3376 | -9/Exiles | Met EX-DEC 3751 | -9/Exiles | Discovered new exit (range 12) 3953 | -9/Exiles | Met EX-BIN 3986 | -9/Exiles | Aligned with FarCom system 3989 | -9/Exiles | Given EX-Vault access code 4049 | -9/Exiles | Opened EX-Vault 4102 | -9/Exiles | Warned to stay clear of 0b10 Research branches 4847 | -9/Exiles | Attacked by the Exiles 5036 | -9/Exiles | Core integrity fell below 50% 5062 | -9/Exiles | Lost 12 parts (1p4n5u2w) 5080 | -9/Exiles | Destroyed 8R-AWN 5102 | -9/Exiles | Found Prototype Ballistic Gun 5102 | -9/Exiles | Identified 8R-AWN's Boregun 5115 | -9/Exiles | Found Prototype Device 5115 | -9/Exiles | Identified AS-neutralizer No. 17b 5129 | -9/Exiles | Found Prototype Processor 5487 | -9/Exiles | Destroyed EX-DEC 5590 | -9/Exiles | Destroyed EX-HEX 5626 | -9/Exiles | Destroyed EX-BIN 5636 | -9/Exiles | Found Prototype Device 5636 | -9/Exiles | Identified System Purifier 6056 | -9/Exiles | Identified exit to Mines 6058 | -9/Exiles | Entered Mines 6145 | -8/Mines | NK-0LA came to Exiles' defense 6157 | -8/Mines | Core integrity fell below 20% 6160 | -8/Mines | Destroyed by NK-0LA with NK-0LA's Tesla Doomcannon Last Messages --------------- 06060_ Pulverizer disabled. 06062_ S-10 Pest destroyed. 06069_ The unstable cave ceiling collapses. 06140_ Discarded Signal Interpreter. 06145_ NK-0LA: "I came as fast as I could... Wait, it was you!" 06145_ HV Slug penetrates Wall. 06145_ HV Slug penetrates NK-0LA. 06145_ NK-0LA suffers critical hit (Destroy). 06145_ Destroyed Adv. Power Amplifier. 06146_ Katana destroyed. 06147_ HV Slug penetrates NK-0LA. 06147_ NK-0LA suffers critical hit (Destroy). 06147_ HV Slug penetrates Wall. 06150_ HV Slug penetrates NK-0LA. 06150_ HV Slug penetrates Wall. 06153_ HV Slug penetrates NK-0LA. 06153_ NK-0LA suffers critical hit (Destroy). 06153_ HV Slug penetrates Wall. 06158_ 8R-AWN's Boregun destroyed. 06158_ Lgt. Treads destroyed. Map ----- +----------------------------------------------------+ | ????????????????????????????????? | | ????????????????????????????????? | | ????????????????????????????????? | | ????????????????????????????????? | | ????????????????????????????????? | | ????????????????????????????????? | | ????????????????????????????????? | | ????????????????????????????????? | | ????????????????????????????????? | | ????????????????????????????????? | | ?????? ???????????????????????? | | ?????? ???????????????????????? | | ?????? ???????????????????????? | | ?????? ???????????????????????? | | ?????? ???????????????????????? | | ?????? ???????????????????????? | | ?????? ???????????????????????? | | ??????# #??????????????????????? | | ??????# #??????????????????????? | | ??????# #????????? ???????????? | | ??????# #??????? ?????????? | | ??????# #??????? ?????????? | | ??????# #??????# ?????????? | | ??????# #?????? #??????????? | | ??????# #?????? ! #???????????? | | ??????# @#####?# ##??????????? | | ??????# x## ## #??????????? | | ??????# #??????????? | | ??????#### #??????????? | | ?????????# ##??????????? | | ?????????# ! ####???????????? | | ?????????# ##??????????????? | | ?????????## ###???????????????? | | ######????## #?????????????????? | | #?????# #?????????????????? | | # ###????# #?????????????????? | | # ###### #?????????????????? | | # """ ## #########?????????? | | %* """ ## #?????? | | """" #######???????????? | | ?#= ## #?????????????????? | | ?# ## #?????????????????? | | ?# ## #?????????????????? | | ?########### #?????????????????? | | ???????????# #?????????????????? | | ???????????# #?????????????????? | | ??????????? #?????????????????? | | ??????????? #?????????????????? | | ???????????####?????????????????? | | ????????????????????????????????? | +----------------------------------------------------+ Best States ------------- Heat Dissipation 62 Energy Generation 19 Energy Capacity 310 Matter Stores 300 Matter Capacity 300 Sight Range 16 Terrain Scan Density 10 Armor Coverage 300 Evasion (%) 40 Recoil Reduction 2 Authchip Count 1 Item Schematics ----------------- None Robot Schematics ------------------ None Fabricated ------------ Nothing Alien Tech Used ----------------- None Achievements -------------- None Challenges ------------ None Game ------ Seed FocalChromaticShield Manual? 0 Play Time 00:28:27 Cumulative 239.9 hours Start 2021.12.25 @ 12:24:39 End 2021.12.25 @ 13:08:18 Sessions 1 Manual Loads 0 Difficulty Rogue Special Mode Winter2021/Sauler Game No. 323 Rogue 236 Adventurer 87 Explorer 0 Win Type - Total 5 Types 3/0/1/1/0/0/0/0/0 Lore% 70 Gallery% 79 Achievement% 67 Wizard Run 0 Options --------- ASCII 0 Keyboard 1 Movement Numpad Keybinds 0 Fullscreen 1 Font 18/Smallcaps Map View 76x50 Tactical HUD 1 Map Filters NONE Filters NONE Steam 1 RUN: 9500d1f4-a108-4d13-ab94-643dd7a3bd74